fUSD/lending_fUSD_20260526
["ID","MTS","AMOUNT","RATE_DAILY","PERIOD"]
[423024361,1779765800000,-522.90173104,0.000103,2]
[423024362,1779765800000,-7270.5339439,0.000103,2]
[423024365,1779765884000,-1557.21001823,0.00010573,2]
[423024368,1779765908000,562.6155016,0.00010619,2]
[423024367,1779765908000,468.72049044,0.00010619,2]
[423024376,1779766004000,-348.99451725,0.00010547,2]
[423024450,1779766141000,1000.0,0.00028081,120]
[423024461,1779766231000,-534.20501834,0.00010569,2]
[423024484,1779766231000,-215.42269777,0.00013875,2]
[423024479,1779766231000,-4458.0,0.00013469,2]
[423024492,1779766231000,-519.15737366,0.00015922,2]
[423024486,1779766231000,-250.0,0.00014,2]
[423024490,1779766231000,-519.15737366,0.00015911,2]
[423024469,1779766231000,-150.0,0.00010811,2]
[423024471,1779766231000,-150.0,0.00010917,2]
[423024466,1779766231000,-65506.63871355,0.000107,2]
[423024468,1779766231000,-150.0,0.00010705,2]
[423024467,1779766231000,-1051.52667893,0.000107,2]
[423024464,1779766231000,-1200.0,0.00010699,2]
[423024475,1779766231000,-195.0,0.00011129,2]
[423024477,1779766231000,-250.0,0.00011601,2]
[423024465,1779766231000,-300.0,0.00010699,2]
[423024462,1779766231000,-2889.24101796,0.00010569,2]
[423024473,1779766231000,-150.0,0.00011023,2]
[423024463,1779766231000,-250.0,0.00010623,2]
[423024460,1779766231000,-552.3873477,0.00010569,2]
[423024494,1779766231000,-519.15737366,0.00015925,2]
[423024482,1779766231000,-354.80573012,0.0001377,2]
[423024496,1779766231000,-519.15737366,0.00015934,2]
[423024488,1779766231000,-489.7392003,0.00014734,2]
[423024519,1779766231000,-519.15737366,0.00016159,2]
[423024515,1779766231000,-514.22246503,0.00016056,2]
[423024518,1779766231000,-514.22246503,0.00016094,2]
[423024514,1779766231000,-519.15737366,0.00016036,2]
[423024513,1779766231000,-514.22246503,0.00016028,2]
[423024511,1779766231000,-514.22246503,0.00016013,2]
[423024506,1779766231000,-519.15737366,0.00015984,2]
[423024510,1779766231000,-519.15737366,0.00016008,2]
[423024516,1779766231000,-519.15737366,0.00016061,2]
[423024512,1779766231000,-514.22246503,0.00016016,2]
[423024517,1779766231000,-519.15737366,0.00016076,2]
[423024509,1779766231000,-519.15737366,0.00016004,2]
[423024507,1779766231000,-300.0,0.00016,2]
[423024505,1779766231000,-519.15737366,0.00015963,2]
[423024503,1779766231000,-519.15737366,0.00015963,2]
[423024502,1779766231000,-519.15737366,0.0001596,2]
[423024500,1779766231000,-519.15737366,0.00015951,2]
[423024508,1779766231000,-519.15737366,0.00016003,2]
[423024498,1779766231000,-519.15737366,0.00015937,2]
[423024527,1779766232000,-168.07,0.00016712,2]
[423024528,1779766232000,-3041.61582676,0.000169,2]
[423024529,1779766232000,-3041.61582676,0.00017,2]
[423024526,1779766232000,-3041.61582676,0.000167,2]
[423024524,1779766232000,-1828.59,0.00016632,2]
[423024531,1779766232000,-502.36932317,0.00017105,2]
[423024521,1779766232000,-519.15737366,0.00016176,2]
[423024523,1779766232000,-335.49952257,0.00016438,2]
[423024530,1779766232000,-2019.3370577,0.00017105,2]
[423024520,1779766232000,-519.15737366,0.0001616,2]
[423024525,1779766232000,-367.97,0.00016665,2]
[423024522,1779766232000,-519.15737366,0.0001622,2]
[423024534,1779766232000,-3041.61582676,0.000174,2]
[423024540,1779766232000,-3041.61582676,0.000179,2]
[423024532,1779766232000,-3041.61582676,0.000172,2]
[423024543,1779766232000,-3041.61582676,0.000181,2]
[423024535,1779766232000,-3041.61582676,0.000175,2]
[423024544,1779766232000,-3041.61582676,0.000183,2]
[423024537,1779766232000,-355.64249324,0.0001781,2]
[423024536,1779766232000,-3041.61582676,0.000177,2]
[423024538,1779766232000,-362.99923555,0.00017867,2]
[423024539,1779766232000,-169.10516353,0.00017867,2]
[423024541,1779766232000,-350.0,0.00018,2]
[423024542,1779766232000,-259.6092417,0.00018,2]
[423024546,1779766232000,-1579.1,0.0001841,2]
[423024547,1779766232000,-9407.32775617,0.00018433,2]
[423024545,1779766232000,-632.93,0.00018356,2]
[423024533,1779766232000,-450.42,0.00017288,2]
[423024565,1779766242000,-1131.57916287,0.00018433,2]
[423024563,1779766242000,-207.43761712,0.00010523,2]
[423024567,1779766242000,-4547.69390979,0.00018433,2]
[423024566,1779766242000,-412.40594718,0.00018433,2]
[423024568,1779766243000,-671.62652613,0.00018433,2]
[423024569,1779766243000,-420.79835175,0.00018433,2]
[423024582,1779766245000,-615.69805826,0.00018611,2]
[423024580,1779766245000,-601.71500188,0.00018433,2]
[423024579,1779766245000,-1341.74535061,0.00018433,2]
[423024581,1779766245000,-556.75194174,0.00018433,2]
[423024578,1779766245000,-46348.59465188,0.00018433,2]
[423024612,1779766246000,-7965.41053267,0.0001985,2]
[423024621,1779766246000,-151.0,0.0001985,2]
[423024620,1779766246000,-578.20924308,0.0001985,2]
[423024603,1779766246000,-151.0,0.0001985,2]
[423024605,1779766246000,-270.75637132,0.0001985,2]
[423024606,1779766246000,-151.0,0.0001985,2]
[423024611,1779766246000,-601.3376128,0.0001985,2]
[423024610,1779766246000,-174.61919141,0.0001985,2]
[423024617,1779766246000,-1734.62772924,0.0001985,2]
[423024615,1779766246000,-151.0,0.0001985,2]
[423024618,1779766246000,-174.61919141,0.0001985,2]
[423024609,1779766246000,-151.0,0.0001985,2]
[423024602,1779766246000,-1673.53451534,0.0001985,2]
[423024614,1779766246000,-1191.11104074,0.0001985,2]
[423024616,1779766246000,-152.0,0.0001985,2]
[423024623,1779766246000,-200.0,0.0001985,2]
[423024633,1779766246000,-151.0,0.0001985,2]
[423024622,1779766246000,-151.0,0.0001985,2]
[423024634,1779766246000,-152.0,0.0001985,2]
[423024613,1779766246000,-151.0,0.0001985,2]
[423024599,1779766246000,-151.0,0.0001985,2]
[423024598,1779766246000,-151.0,0.0001985,2]
[423024604,1779766246000,-200.0,0.0001985,2]
[423024635,1779766246000,-151.0,0.0001985,2]
[423024583,1779766246000,-1789.75645199,0.00018611,2]
[423024584,1779766246000,-269.43854801,0.00018657,2]
[423024585,1779766246000,-180.98145199,0.00018657,2]
[423024586,1779766246000,-1828.59,0.00018711,2]
[423024587,1779766246000,-220.868171,0.00018785,2]
[423024589,1779766246000,-315.0,0.000191,2]
[423024592,1779766246000,-385.0,0.00019486,5]
[423024588,1779766246000,-1000.0,0.000191,2]
[423024590,1779766246000,-309.0,0.000191,2]
[423024594,1779766246000,-174.61919141,0.0001985,2]
[423024595,1779766246000,-279.9045709,0.0001985,2]
[423024591,1779766246000,-154.63,0.00019109,2]
[423024593,1779766246000,-6938.51091696,0.0001985,2]
[423024597,1779766246000,-500.0,0.0001985,2]
[423024607,1779766246000,-743.50770149,0.0001985,2]
[423024608,1779766246000,-174.61919141,0.0001985,2]
[423024596,1779766246000,-151.0,0.0001985,2]
[423024601,1779766246000,-793.1136,0.0001985,2]
[423024600,1779766246000,-1002.60734314,0.0001985,2]
[423024631,1779766246000,-151.0,0.0001985,2]
[423024619,1779766246000,-529.85369137,0.0001985,2]
[423024628,1779766246000,-151.0,0.0001985,2]
[423024648,1779766246000,-152.0,0.0001985,2]
[423024654,1779766246000,-152.0,0.0001985,2]
[423024653,1779766246000,-151.0,0.0001985,2]
[423024658,1779766246000,-151.0,0.0001985,2]
[423024656,1779766246000,-151.0,0.0001985,2]
[423024651,1779766246000,-151.0,0.0001985,2]
[423024664,1779766246000,-151.0,0.0001985,2]
[423024667,1779766246000,-151.0,0.0001985,2]
[423024668,1779766246000,-152.0,0.0001985,2]
[423024662,1779766246000,-152.0,0.0001985,2]
[423024666,1779766246000,-151.0,0.0001985,2]
[423024665,1779766246000,-152.0,0.0001985,2]
[423024672,1779766246000,-151.0,0.00019905,2]
[423024670,1779766246000,-152.0,0.0001985,2]
[423024669,1779766246000,-152.0,0.0001985,2]
[423024671,1779766246000,-7195.23582089,0.00019905,2]
[423024676,1779766246000,-400.0,0.0002,2]
[423024678,1779766246000,-779.0,0.0002,2]
[423024675,1779766246000,-151.0,0.0001996,2]
[423024629,1779766246000,-152.0,0.0001985,2]
[423024674,1779766246000,-501.09334414,0.0001996,2]
[423024663,1779766246000,-151.0,0.0001985,2]
[423024673,1779766246000,-1341.25593968,0.00019905,2]
[423024659,1779766246000,-152.0,0.0001985,2]
[423024632,1779766246000,-152.0,0.0001985,2]
[423024624,1779766246000,-151.0,0.0001985,2]
[423024626,1779766246000,-152.0,0.0001985,2]
[423024625,1779766246000,-151.0,0.0001985,2]
[423024627,1779766246000,-151.0,0.0001985,2]
[423024677,1779766246000,-211.0,0.0002,2]
[423024630,1779766246000,-151.0,0.0001985,2]
[423024638,1779766246000,-151.0,0.0001985,2]
[423024640,1779766246000,-152.0,0.0001985,2]
[423024636,1779766246000,-151.0,0.0001985,2]
[423024642,1779766246000,-151.0,0.0001985,2]
[423024660,1779766246000,-151.0,0.0001985,2]
[423024639,1779766246000,-151.0,0.0001985,2]
[423024637,1779766246000,-152.0,0.0001985,2]
[423024641,1779766246000,-151.0,0.0001985,2]
[423024643,1779766246000,-152.0,0.0001985,2]
[423024647,1779766246000,-151.0,0.0001985,2]
[423024645,1779766246000,-151.0,0.0001985,2]
[423024644,1779766246000,-151.0,0.0001985,2]
[423024646,1779766246000,-151.0,0.0001985,2]
[423024661,1779766246000,-151.0,0.0001985,2]
[423024684,1779766247000,-4869.0,0.0002,2]
[423024686,1779766247000,-151.0,0.00020015,2]
[423024682,1779766247000,-301.0,0.0002,2]
[423024680,1779766247000,-744.0,0.0002,2]
[423024683,1779766247000,-888.0,0.0002,2]
[423024679,1779766247000,-152.0,0.0002,2]
[423024681,1779766247000,-1567.0,0.0002,2]
[423024687,1779766247000,-151.0,0.0002007,2]
[423024689,1779766247000,-790.73883686,0.00020145,2]
[423024690,1779766247000,-1982.28116314,0.00020145,2]
[423024692,1779766247000,-1958.42879686,0.00020145,2]
[423024688,1779766247000,-151.0,0.00020125,2]
[423024691,1779766247000,-150.99,0.00020145,2]
[423024685,1779766247000,-8019.85,0.0002,2]
[423024886,1779766263000,1618.22,0.00027543,120]
[423025085,1779767341000,1000.0,0.0002808,120]
[423025102,1779767431000,-150.0,0.00018595,2]
[423025098,1779767431000,-190.3153135,0.0001801,2]
[423025101,1779767431000,-2316.0,0.00018545,2]
[423025106,1779767431000,-154.63,0.00019228,2]
[423025110,1779767431000,-1000.0,0.000196,2]
[423025109,1779767431000,-200.0,0.00019516,2]
[423025099,1779767431000,-365.18760773,0.0001801,2]
[423025100,1779767431000,-1616.9,0.0001841,2]
[423025095,1779767431000,-169.04,0.000172,2]
[423025091,1779767431000,-169.04,0.0001505,2]
[423025097,1779767431000,-350.0,0.00018,2]
[423025094,1779767431000,-168.07,0.00016712,2]
[423025090,1779767431000,-250.0,0.00014,2]
[423025088,1779767431000,-169.04,0.000129,2]
[423025092,1779767431000,-300.0,0.00016,2]
[423025089,1779767431000,-208.92835186,0.00013747,2]
[423025087,1779767431000,-169.04,0.0001075,2]
[423025108,1779767431000,-169.04,0.0001935,2]
[423025096,1779767431000,-174.08,0.00017784,2]
[423025107,1779767431000,-1294.57,0.00019228,2]
[423025093,1779767431000,-1616.9,0.00016438,2]
[423025104,1779767431000,-500.0,0.00019,2]
[423025103,1779767431000,-169.48,0.00018986,2]
[423025130,1779767431000,-151.0,0.00019875,2]
[423025129,1779767431000,-151.0,0.00019875,2]
[423025127,1779767431000,-151.0,0.00019875,2]
[423025124,1779767431000,-151.0,0.00019875,2]
[423025131,1779767431000,-151.0,0.00019875,2]
[423025117,1779767431000,-151.0,0.00019875,2]
[423025119,1779767431000,-200.0,0.00019875,2]
[423025121,1779767431000,-151.0,0.00019875,2]
[423025122,1779767431000,-151.0,0.00019875,2]
[423025125,1779767431000,-151.0,0.00019875,2]
[423025120,1779767431000,-151.0,0.00019875,2]
[423025115,1779767431000,-1469.2176009,0.00019803,2]
[423025111,1779767431000,-928.0,0.000196,2]
[423025112,1779767431000,-309.0,0.000196,2]
[423025114,1779767431000,-523.2873978,0.00019803,2]
[423025105,1779767431000,-215.42269777,0.00019111,2]
[423025113,1779767431000,-26840.7618433,0.00019803,2]
[423025116,1779767431000,-500.0,0.00019875,2]
[423025118,1779767431000,-151.0,0.00019875,2]
[423025123,1779767431000,-151.0,0.00019875,2]
[423025150,1779767432000,-151.0,0.00019875,2]
[423025144,1779767432000,-151.0,0.00019875,2]
[423025151,1779767432000,-151.0,0.00019875,2]
[423025139,1779767432000,-151.0,0.00019875,2]
[423025146,1779767432000,-151.0,0.00019875,2]
[423025147,1779767432000,-151.0,0.00019875,2]
[423025148,1779767432000,-151.0,0.00019875,2]
[423025143,1779767432000,-151.0,0.00019875,2]
[423025140,1779767432000,-151.0,0.00019875,2]
[423025138,1779767432000,-151.0,0.00019875,2]
[423025141,1779767432000,-151.0,0.00019875,2]
[423025137,1779767432000,-1734.62772924,0.00019875,2]
[423025134,1779767432000,-151.0,0.00019875,2]
[423025135,1779767432000,-151.0,0.00019875,2]
[423025132,1779767432000,-151.0,0.00019875,2]
[423025133,1779767432000,-151.0,0.00019875,2]
[423025149,1779767432000,-151.0,0.00019875,2]
[423025142,1779767432000,-151.0,0.00019875,2]
[423025145,1779767432000,-151.0,0.00019875,2]
[423025136,1779767432000,-151.0,0.00019875,2]
[423025161,1779767432000,-155.0,0.0002,2]
[423025172,1779767432000,-1009.52478158,0.00020355,2]
[423025170,1779767432000,-464.29087844,0.00020355,2]
[423025165,1779767432000,-312.0,0.0002,2]
[423025168,1779767432000,-201.730421,0.00020355,2]
[423025169,1779767432000,-29508.5667228,0.00020355,2]
[423025166,1779767432000,-892.11582185,0.00020281,2]
[423025167,1779767432000,-195.47,0.00020291,2]
[423025164,1779767432000,-1675.0,0.0002,2]
[423025159,1779767432000,-222.0,0.0002,2]
[423025171,1779767432000,-1255.85058668,0.00020355,2]
[423025158,1779767432000,-400.0,0.0002,2]
[423025160,1779767432000,-812.0,0.0002,2]
[423025163,1779767432000,-736.51913387,0.0002,2]
[423025154,1779767432000,-151.0,0.00019875,2]
[423025156,1779767432000,-151.0,0.00019875,2]
[423025153,1779767432000,-151.0,0.00019875,2]
[423025152,1779767432000,-151.0,0.00019875,2]
[423025162,1779767432000,-51.48086613,0.0002,2]
[423025157,1779767432000,-663.99,0.0002,2]
[423025155,1779767432000,-151.0,0.00019875,2]
[423025178,1779767437000,-2000.0,0.00020355,2]
[423025181,1779767438000,-357.53706174,0.00020355,2]
[423025183,1779767438000,-1386.34858037,0.00020355,2]
[423025182,1779767438000,-374.68915625,0.00020355,2]
[423025179,1779767438000,-752.76997313,0.00020355,2]
[423025180,1779767438000,-2527.28622367,0.00020355,2]
[423025244,1779767440000,-806.48695215,0.00020355,2]
[423025247,1779767440000,-1136.92748148,0.00020355,2]
[423025246,1779767440000,-1054.16012948,0.00020355,2]
[423025245,1779767440000,-7672.2,0.00020355,2]
[423025251,1779767445000,-1759.0,0.00020355,2]
[423025253,1779767446000,-482.33304701,0.00020355,2]
[423025252,1779767446000,-15057.69745933,0.00020355,2]
[423025260,1779767578000,155.16,9.388e-05,2]
[423025264,1779767717000,151.49,0.0001,2]
[423025281,1779768424000,154.75,8.345e-05,2]
[423025282,1779768541000,1000.0,0.00028079,120]
[423025310,1779768631000,-964.0,0.00016695,2]
[423025293,1779768631000,-306.07338743,0.00013227,2]
[423025296,1779768631000,-250.0,0.00014,2]
[423025302,1779768631000,-2500.0,0.0001455,2]
[423025301,1779768631000,-2476.16725985,0.0001455,2]
[423025295,1779768631000,-215.42269777,0.0001366,2]
[423025303,1779768631000,-2265.54814361,0.0001455,2]
[423025304,1779768631000,-4000.0,0.00015,2]
[423025297,1779768631000,-197.6366185,0.0001445,2]
[423025294,1779768631000,-198.98506562,0.00013227,2]
[423025298,1779768631000,-272.88223068,0.00014549,2]
[423025305,1779768631000,-300.0,0.00016,2]
[423025300,1779768631000,-23.83274015,0.0001455,2]
[423025307,1779768631000,-163.5,0.00016438,2]
[423025309,1779768631000,-154.75,0.00016691,2]
[423025306,1779768631000,-1347.4,0.00016438,2]
[423025308,1779768631000,-10447.73419857,0.00016612,2]
[423025311,1779768631000,-929.24645225,0.000168,2]
[423025299,1779768631000,-633.11776932,0.00014549,2]
[423025323,1779768632000,-752.0392423,0.000182,2]
[423025322,1779768632000,-742.26862846,0.000182,2]
[423025327,1779768632000,-1347.4,0.0001841,2]
[423025319,1779768632000,-742.26862846,0.00018,2]
[423025317,1779768632000,-929.24645225,0.000175,2]
[423025324,1779768632000,-154.63,0.00018362,2]
[423025315,1779768632000,-167.7,0.0001736,2]
[423025321,1779768632000,-350.0,0.00018,2]
[423025320,1779768632000,-752.0392423,0.00018,2]
[423025318,1779768632000,-1035.65,0.00017552,2]
[423025312,1779768632000,-929.24645225,0.00017,2]
[423025313,1779768632000,-929.24645225,0.000172,2]
[423025314,1779768632000,-929.24645225,0.000173,2]
[423025316,1779768632000,-190.3153135,0.00017474,2]
[423025326,1779768632000,-752.0392423,0.000184,2]
[423025334,1779768632000,-742.26862846,0.000187,2]
[423025329,1779768632000,-752.0392423,0.000185,2]
[423025354,1779768632000,-6246.44652404,0.000189,2]
[423025355,1779768632000,-2368.72,0.000189,2]
[423025349,1779768632000,-367.55852767,0.000189,2]
[423025351,1779768632000,-1971.63286512,0.000189,2]
[423025347,1779768632000,-885.56582339,0.000189,2]
[423025325,1779768632000,-742.26862846,0.000184,2]
[423025342,1779768632000,-500.0,0.00018899,2]
[423025332,1779768632000,-931.0,0.00018578,2]
[423025340,1779768632000,-500.0,0.00018899,2]
[423025338,1779768632000,-155.16,0.00018776,2]
[423025330,1779768632000,-418.0,0.00018578,2]
[423025328,1779768632000,-742.26862846,0.000185,2]
[423025336,1779768632000,-752.0392423,0.000187,2]
[423025344,1779768632000,-5674.13245497,0.000189,2]
[423025417,1779768637000,-2763.33395894,0.000189,2]
[423025418,1779768638000,-4544.25027234,0.000189,2]
[423025676,1779768640000,-5398.2,0.000189,2]
[423025703,1779768640000,-492.65507974,0.000189,2]
[423025711,1779768640000,-292.688,0.000189,2]
[423026047,1779768643000,-2429.3393291,0.000199,2]
[423026073,1779768643000,-500.0,0.0002,10]
[423026092,1779768643000,-500.0,0.0002,2]
[423026090,1779768643000,-500.0,0.0002,2]
[423026071,1779768643000,-500.0,0.0002,10]
[423026082,1779768643000,-500.0,0.0002,2]
[423026085,1779768643000,-500.0,0.0002,2]
[423026084,1779768643000,-500.0,0.0002,2]
[423026051,1779768643000,-845.0,0.0002,2]
[423026053,1779768643000,-155.0,0.0002,2]
[423026049,1779768643000,-233.0,0.0002,2]
[423026069,1779768643000,-500.0,0.0002,10]
[423026067,1779768643000,-500.0,0.0002,10]
[423026039,1779768643000,-2685.94725247,0.00018977,2]
[423026063,1779768643000,-500.0,0.0002,10]
[423026061,1779768643000,-500.0,0.0002,10]
[423026059,1779768643000,-500.0,0.0002,10]
[423026057,1779768643000,-782.0,0.0002,2]
[423026055,1779768643000,-200.0,0.0002,2]
[423026045,1779768643000,-1035.65,0.00019746,2]
[423026043,1779768643000,-225.0,0.00019177,2]
[423026037,1779768643000,-261144.12031821,0.000189,2]
[423026080,1779768643000,-500.0,0.0002,2]
[423026032,1779768643000,-95.50645925,0.000189,2]
[423026041,1779768643000,-780.60134411,0.00019077,2]
[423026035,1779768643000,-562.6155016,0.000189,2]
[423026008,1779768643000,-8672.49591473,0.000189,2]
[423026065,1779768643000,-500.0,0.0002,10]
[423026078,1779768643000,-500.0,0.0002,10]
[423026088,1779768643000,-500.0,0.0002,2]
[423026094,1779768643000,-500.0,0.0002,2]
[423026151,1779768643000,-151.0,0.00020483,2]
[423026075,1779768643000,-500.0,0.0002,10]
[423026149,1779768643000,-151.0,0.00020483,2]
[423026155,1779768643000,-76.21705246,0.00020483,2]
[423026145,1779768643000,-880.01914586,0.00020381,2]
[423026147,1779768643000,-151.0,0.00020483,2]
[423026141,1779768643000,-467.38085414,0.00020381,2]
[423026128,1779768643000,-150.0,0.00020255,2]
[423026134,1779768643000,-162.27479,0.0002035,2]
[423026137,1779768643000,-236.31188148,0.00020355,2]
[423026130,1779768643000,-1092.6523,0.00020255,2]
[423026132,1779768643000,-162.27478,0.0002034,2]
[423026139,1779768643000,-162.27479,0.0002036,2]
[423026124,1779768643000,-150.0,0.00020255,2]
[423026153,1779768643000,-151.0,0.00020483,2]
[423026122,1779768643000,-150.0,0.00020255,2]
[423026098,1779768643000,-400.0,0.0002,2]
[423026096,1779768643000,-1591.0,0.0002,2]
[423026100,1779768643000,-296.0,0.0002,2]
[423026107,1779768643000,-1000.0,0.000202,2]
[423026102,1779768643000,-570.0,0.0002,2]
[423026109,1779768643000,-309.0,0.000202,2]
[423026105,1779768643000,-235.35291508,0.00020193,2]
[423026114,1779768643000,-150.0,0.00020255,2]
[423026116,1779768643000,-150.0,0.00020255,2]
[423026118,1779768643000,-150.0,0.00020255,2]
[423026120,1779768643000,-150.0,0.00020255,2]
[423026111,1779768643000,-150.0,0.00020255,2]
[423026126,1779768643000,-150.0,0.00020255,2]
[423026403,1779768646000,-233.87134301,0.00020483,2]
[423026402,1779768646000,-589.514406,0.00020483,2]
[423026400,1779768646000,-742.03475349,0.00019634,2]
[423026401,1779768646000,-74.78294754,0.00020483,2]
[423026387,1779768646000,-2893.96524651,0.00019634,2]
[423026457,1779769596000,-348.99621859,0.000114,2]
[423026458,1779769740000,1000.0,0.00028078,120]
[423026459,1779769756000,155.27,8.793e-05,2]
[423026464,1779769832000,-0.02560595,0.000114,2]
[423026481,1779769832000,-181.13,0.00018094,2]
[423026479,1779769832000,-208.14663573,0.00018,2]
[423026477,1779769832000,-2539.72610989,0.00017237,2]
[423026476,1779769832000,-1088.5,0.00016438,2]
[423026474,1779769832000,-39289.7451,0.00016412,2]
[423026466,1779769832000,-250.0,0.00012164,2]
[423026472,1779769832000,-24625.6355,0.00016312,2]
[423026463,1779769832000,-150.0,0.00011058,2]
[423026471,1779769832000,-300.0,0.00016311,2]
[423026475,1779769832000,-2500.0,0.00016412,2]
[423026467,1779769832000,-250.0,0.0001254,2]
[423026469,1779769832000,-200.0,0.00015483,2]
[423026470,1779769832000,-348.994518,0.00016247,2]
[423026468,1779769832000,-348.99271515,0.00013,5]
[423026489,1779769832000,-502.0,0.00018986,2]
[423026465,1779769832000,-250.0,0.00012164,2]
[423026473,1779769832000,-536.73,0.00016412,2]
[423026478,1779769832000,-500.0,0.00017687,2]
[423026505,1779769832000,-814.5292864,0.00018989,2]
[423026480,1779769832000,-242.30195959,0.00018,2]
[423026490,1779769832000,-562.13899959,0.00018989,2]
[423026504,1779769832000,-682.50666292,0.00018989,2]
[423026501,1779769832000,-569.13169042,0.00018989,2]
[423026503,1779769832000,-723.91269507,0.00018989,2]
[423026498,1779769832000,-970.44892758,0.00018989,2]
[423026497,1779769832000,-5128.06623055,0.00018989,2]
[423026493,1779769832000,-772.55666425,0.00018989,2]
[423026492,1779769832000,-28565.26267994,0.00018989,2]
[423026499,1779769832000,-914.31806116,0.00018989,2]
[423026491,1779769832000,-1269.18758371,0.00018989,2]
[423026484,1779769832000,-500.0,0.00018218,2]
[423026488,1779769832000,-999.4393618,0.00018979,2]
[423026483,1779769832000,-208.14663573,0.000182,2]
[423026486,1779769832000,-183.82445758,0.00018522,2]
[423026487,1779769832000,-449.42469043,0.00018764,2]
[423026485,1779769832000,-1088.5,0.0001841,2]
[423026494,1779769832000,-2277.63330726,0.00018989,2]
[423026482,1779769832000,-621.39,0.00018112,2]
[423026552,1779769838000,-500.0,0.000202,2]
[423026550,1779769838000,-597.471319,0.000202,2]
[423026555,1779769838000,-151.0,0.000202,2]
[423026554,1779769838000,-151.0,0.000202,2]
[423026541,1779769838000,-151.0,0.000202,2]
[423026547,1779769838000,-597.471319,0.000202,2]
[423026543,1779769838000,-151.0,0.000202,2]
[423026542,1779769838000,-151.0,0.000202,2]
[423026553,1779769838000,-200.0,0.000202,2]
[423026546,1779769838000,-151.0,0.000202,2]
[423026556,1779769838000,-1734.62772924,0.000202,2]
[423026565,1779769838000,-151.0,0.000202,2]
[423026548,1779769838000,-597.471319,0.000202,2]
[423026549,1779769838000,-597.471319,0.000202,2]
[423026551,1779769838000,-151.0,0.000202,2]
[423026558,1779769838000,-151.0,0.000202,2]
[423026560,1779769838000,-151.0,0.000202,2]
[423026561,1779769838000,-500.0,0.000202,2]
[423026559,1779769838000,-151.0,0.000202,2]
[423026544,1779769838000,-151.0,0.000202,2]
[423026564,1779769838000,-500.0,0.000202,2]
[423026563,1779769838000,-151.0,0.000202,2]
[423026562,1779769838000,-151.0,0.000202,2]
[423026566,1779769838000,-151.0,0.000202,2]
[423026557,1779769838000,-151.0,0.000202,2]
[423026537,1779769838000,-743.0,0.0002,2]
[423026527,1779769838000,-2539.72610984,0.0001949,2]
[423026540,1779769838000,-151.0,0.000202,2]
[423026569,1779769838000,-151.0,0.000202,2]
[423026515,1779769838000,-215.42269777,0.00016465,2]
[423026516,1779769838000,-1272.76341365,0.00018989,2]
[423026517,1779769838000,-151.0,0.00018989,2]
[423026520,1779769838000,-597.471319,0.00018989,2]
[423026518,1779769838000,-597.471319,0.00018989,2]
[423026519,1779769838000,-597.471319,0.00018989,2]
[423026521,1779769838000,-597.471319,0.00018989,2]
[423026522,1779769838000,-151.0,0.00019178,2]
[423026531,1779769838000,-3636.0,0.00019792,2]
[423026523,1779769838000,-172.65647,0.00019178,2]
[423026536,1779769838000,-155.0,0.0002,2]
[423026532,1779769838000,-627.273,0.00019792,2]
[423026524,1779769838000,-151.0,0.00019178,2]